Workbook

Sheet Histogram Generator
A1: Automatic Histogram Generator
A3: Directions: Enter your data in the data column, in no particular order. Even though the observation numbers only go up to 200, you can enter as many as you want. Note that there is a maximum of 10 histogram intervals; the worksheet can be modified to increase the number of intervals.
J4: =IF($L$18<COUNT($B$8:$B$1007),"WARNING: Not All Observations Included in Frequency Distribution","") -> 
R5: Range | S5: Freq
A6: Observation # | B6: Data | C6: Interval Number | D6: Lower Limit | F6: Upper Limit | G6: Frequency | H6: Relative | I6: Cumulative | J6: Cum. Rel. | K6: SD | L6: Number of intervals | R6: =IF(ISNUMBER(D8),CONCATENATE(D8," ~ ",F8),"") -> 2.8 ~ 2.949 | S6: =IF(H8="",0,H8) -> 0.075
H7: Frequency | I7: Frequency | J7: Frequency | K7: =STDEV(B8:B1007) -> 0.3084104123 | L7: 8 | N7: =$B$6 -> Data | O7: =$B$6 -> Data | R7: 2.949 ~ 3.098 | S7: 0.11
A8: Observation 1 | B8: 2.82 | C8: 1 | D8: =MIN(B8:B1007) -> 2.8 | E8: < X < | F8: =ROUND(D8 + L$9,3) -> 2.949 | G8: =IF(ISBLANK(F8),"",P8) -> 15 | H8: =IF(ISNUMBER(G8),G8/L$18,"") -> 0.075 | I8: =IF(ISNUMBER(G8),G8,"") -> 15 | J8: =IF(ISNUMBER(H8),H8,"") -> 0.075 | M8: =IF(MAX(F8:F17)<MAX(B8:B207),"WARNING: Maximum Score Not Included","") ->  | N8: =CONCATENATE(">=",D8) -> >=2.8 | O8: =CONCATENATE("<",F8) -> <2.949 | P8: =DCOUNTA($B$6:$B$1006,1,N7:O8) -> 15 | R8: 3.098 ~ 3.247 | S8: 0.145
A9: Observation 2 | B9: 3.49 | C9: 2 | D9: =IF($F8>=MAX($B$8:$B1007),"",$F8) -> 2.949 | E9: < X < | F9: =IF(D9="","",IF(((MAX($B$8:B1007)-(F8+$L$9))/$L$7) <=0.01,MAX(B$8:B1007),ROUND(D9+$L$9,3))) -> 3.098 | G9: =IF(ISBLANK(F9),"",P10) -> 22 | H9: =IF(ISNUMBER(G9),G9/L$18,"") -> 0.11 | I9: =IF(ISNUMBER(G9),G9+I8,"") -> 37 | J9: =IF(ISNUMBER(H9),H9+J8,"") -> 0.185 | K9: Interval width = | L9: 0.1490000039 | M9: =IF(MIN(D8:D17)>MIN(B8:B207),"WARNING: Minimum Score Not Included","") ->  | N9: =$B$6 -> Data | O9: =$B$6 -> Data | R9: 3.247 ~ 3.396 | S9: 0.12
A10: Observation 3 | B10: 3.28 | C10: 3 | D10: =IF($F9>=MAX($B$8:$B1007),"",$F9) -> 3.098 | E10: < X < | F10: =IF(D10="","",IF(((MAX($B$8:B1008)-(F9+$L$9))/$L$7) <=0.01,MAX(B$8:B1008),ROUND(D10+$L$9,3))) -> 3.247 | G10: =IF(ISBLANK(F10),"",P12) -> 29 | H10: =IF(ISNUMBER(G10),G10/L$18,"") -> 0.145 | I10: 66 | J10: 0.33 | K10: (Select width rule:) | N10: =CONCATENATE(">=",D9) -> >=2.949 | O10: =IF(F9=MAX(B8:B1007),CONCATENATE("<=",F9),CONCATENATE("<",F9)) -> <3.098 | P10: =DCOUNTA($B$6:B1006,1,N9:O10) -> 22 | R10: 3.396 ~ 3.545 | S10: 0.15
A11: Observation 4 | B11: 3.25 | C11: 4 | D11: =IF($F10>=MAX($B$8:$B1007),"",$F10) -> 3.247 | E11: < X < | F11: =IF(D11="","",IF(((MAX($B$8:B1009)-(F10+$L$9))/$L$7) <=0.01,MAX(B$8:B1009),ROUND(D11+$L$9,3))) -> 3.396 | G11: =IF(ISBLANK(F11),"",P14) -> 24 | H11: =IF(ISNUMBER(G11),G11/L$18,"") -> 0.12 | I11: 90 | J11: 0.45 | K11: Scott's | M11: =IF(L18>COUNT(B8:B207),"WARNING: Some Observations Are Double-Counted in Frequency Distribution","") ->  | N11: =$B$6 -> Data | O11: =$B$6 -> Data | R11: 3.545 ~ 3.694 | S11: 0.175
A12: Observation 5 | B12: 3.26 | C12: 5 | D12: =IF($F11>=MAX($B$8:$B1007),"",$F11) -> 3.396 | E12: < X < | F12: =IF(D12="","",IF(((MAX($B$8:B1010)-(F11+$L$9))/$L$7) <=0.01,MAX(B$8:B1010),ROUND(D12+$L$9,3))) -> 3.545 | G12: =IF(ISBLANK(F12),"",P16) -> 30 | H12: =IF(ISNUMBER(G12),G12/L$18,"") -> 0.15 | I12: 120 | J12: 0.6 | K12: Sturgis' | N12: =CONCATENATE(">=",D10) -> >=3.098 | O12: =IF(F10=MAX(B8:B1005),CONCATENATE("<=",F10),CONCATENATE("<",F10)) -> <3.247 | P12: =DCOUNTA(B$6:B$1006,1,N11:O12) -> 29 | R12: 3.694 ~ 3.843 | S12: 0.15
A13: Observation 6 | B13: 2.87 | C13: 6 | D13: =IF($F12>=MAX($B$8:$B1007),"",$F12) -> 3.545 | E13: < X < | F13: =IF(D13="","",IF(((MAX($B$8:B1011)-(F12+$L$9))/$L$7) <=0.01,MAX(B$8:B1011),ROUND(D13+$L$9,3))) -> 3.694 | G13: =IF(ISBLANK(F13),"",P18) -> 35 | H13: =IF(ISNUMBER(G13),G13/L$18,"") -> 0.175 | I13: 155 | J13: 0.775 | K13: Freedman-Diaconis | N13: =$B$6 -> Data | O13: =$B$6 -> Data | R13: 3.843 ~ 3.99 | S13: 0.075
A14: Observation 7 | B14: 3.16 | C14: 7 | D14: =IF($F13>=MAX($B$8:$B1007),"",$F13) -> 3.694 | E14: < X < | F14: =IF(D14="","",IF(((MAX($B$8:B1012)-(F13+$L$9))/$L$7) <=0.01,MAX(B$8:B1012),ROUND(D14+$L$9,3))) -> 3.843 | G14: =IF(ISBLANK(F14),"",P20) -> 30 | H14: =IF(ISNUMBER(G14),G14/L$18,"") -> 0.15 | I14: 185 | J14: 0.925 | N14: =CONCATENATE(">=",D11) -> >=3.247 | O14: =IF(F11=MAX(B8:B1005),CONCATENATE("<=",F11),CONCATENATE("<",F11)) -> <3.396 | P14: =DCOUNTA(B$6:B$1006,1,N13:O14) -> 24 | S14: 0
A15: Observation 8 | B15: 3.4 | C15: 8 | D15: =IF($F14>=MAX($B$8:$B1007),"",$F14) -> 3.843 | E15: < X < | F15: =IF(D15="","",IF(((MAX($B$8:B1013)-(F14+$L$9))/$L$7) <=0.01,MAX(B$8:B1013),ROUND(D15+$L$9,3))) -> 3.99 | G15: =IF(ISBLANK(F15),"",P22) -> 15 | H15: =IF(ISNUMBER(G15),G15/L$18,"") -> 0.075 | I15: 200 | J15: 1 | N15: =$B$6 -> Data | O15: =$B$6 -> Data | S15: 0
A16: Observation 9 | B16: 2.84 | C16: 9 | D16: =IF($F15>=MAX($B$8:$B1007),"",$F15) ->  | E16: < X < | F16: =IF(D16="","",IF(((MAX($B$8:B1014)-(F15+$L$9))/$L$7) <=0.01,MAX(B$8:B1014),ROUND(D16+$L$9,3))) ->  | G16: =IF(ISBLANK(F16),"",P24) -> 0 | H16: =IF(ISNUMBER(G16),G16/L$18,"") -> 0 | I16: 200 | J16: 1 | N16: =CONCATENATE(">=",D12) -> >=3.396 | O16: =IF(F12=MAX(B$8:B$1005),CONCATENATE("<=",F12),CONCATENATE("<",F12)) -> <3.545 | P16: =DCOUNTA(B$6:B$1006,1,N15:O16) -> 30
A17: Observation 10 | B17: 3.72 | C17: 10 | D17: =IF($F16>=MAX($B$8:$B1007),"",$F16) ->  | E17: < X < | F17: =IF(D17="","",IF(((MAX($B$8:B1015)-(F16+$L$9))/$L$7) <=0.01,MAX(B$8:B1015),ROUND(D17+$L$9,3))) ->  | G17: =IF(ISBLANK(F17),"",P26) -> 0 | H17: =IF(ISNUMBER(G17),G17/L$18,"") -> 0 | I17: 200 | J17: 1 | K17: Checks: | N17: =$B$6 -> Data | O17: =$B$6 -> Data
A18: Observation 11 | B18: 3.22 | K18: 1. Sample Size = | L18: =SUM(G$8:G$17) -> 200 | N18: =CONCATENATE(">=",D13) -> >=3.545 | O18: =IF(F13=MAX(B16:B1013),CONCATENATE("<=",F13),CONCATENATE("<",F13)) -> <3.694 | P18: =DCOUNTA(B$6:B$1006,1,N17:O18) -> 35
A19: Observation 12 | B19: 3.44 | K19: 2. Frequency Sum = | L19: =SUM(H$8:H$17) -> 1 | N19: =$B$6 -> Data | O19: =$B$6 -> Data
A20: Observation 13 | B20: 3.65 | N20: =CONCATENATE(">=",D14) -> >=3.694 | O20: =IF(F14=MAX(B8:B1005),CONCATENATE("<=",F14),CONCATENATE("<",F14)) -> <3.843 | P20: =DCOUNTA(B$6:B$1006,1,N19:O20) -> 30
A21: Observation 14 | B21: 3.02 | N21: =$B$6 -> Data | O21: =$B$6 -> Data
A22: Observation 15 | B22: 3.03 | N22: =CONCATENATE(">=",D15) -> >=3.843 | O22: =IF(F15=MAX(B8:B1005),CONCATENATE("<=",F15),CONCATENATE("<",F15)) -> <=3.99 | P22: =DCOUNTA(B$6:B$1006,1,N21:O22) -> 15
A23: Observation 16 | B23: 3.8 | N23: =$B$6 -> Data | O23: =$B$6 -> Data
A24: Observation 17 | B24: 3.23 | N24: =CONCATENATE(">=",D16) -> >= | O24: =IF(F16=MAX(B8:B1005),CONCATENATE("<=",F16),CONCATENATE("<",F16)) -> < | P24: =DCOUNTA(B$6:B$1006,1,N23:O24) -> 0
A25: Observation 18 | B25: 3.26 | N25: =$B$6 -> Data | O25: =$B$6 -> Data
A26: Observation 19 | B26: 3.53 | N26: =CONCATENATE(">=",D17) -> >= | O26: =IF(F17=MAX(B8:B1005),CONCATENATE("<=",F17),CONCATENATE("<",F17)) -> < | P26: =DCOUNTA(B$6:B$1006,1,N25:O26) -> 0
A27: Observation 20 | B27: 3.75
A28: Observation 21 | B28: 3.15
A29: Observation 22 | B29: 3.66
A30: Observation 23 | B30: 3.36
A31: Observation 24 | B31: 3.79
A32: Observation 25 | B32: 2.85
A33: Observation 26 | B33: 3.74
A34: Observation 27 | B34: 3.23
A35: Observation 28 | B35: 3.52
A36: Observation 29 | B36: 3.32
A37: Observation 30 | B37: 2.89
A38: Observation 31 | B38: 2.83
A39: Observation 32 | B39: 2.93
A40: Observation 33 | B40: 3.71
A41: Observation 34 | B41: 3.47
A42: Observation 35 | B42: 3.52
A43: Observation 36 | B43: 2.83
A44: Observation 37 | B44: 3.64
A45: Observation 38 | B45: 2.96
A46: Observation 39 | B46: 3.59
A47: Observation 40 | B47: 3.33
A48: Observation 41 | B48: 3.38
A49: Observation 42 | B49: 3.44
A50: Observation 43 | B50: 3.31
A51: Observation 44 | B51: 3.03
A52: Observation 45 | B52: 3.26
A53: Observation 46 | B53: 3.04
A54: Observation 47 | B54: 2.98
A55: Observation 48 | B55: 2.8
A56: Observation 49 | B56: 3.75
A57: Observation 50 | B57: 3.64
A58: Observation 51 | B58: 3.65
A59: Observation 52 | B59: 3.18
A60: Observation 53 | B60: 3.44
A61: Observation 54 | B61: 3.06
A62: Observation 55 | B62: 3.51
A63: Observation 56 | B63: 3.33
A64: Observation 57 | B64: 2.81
A65: Observation 58 | B65: 3.64
A66: Observation 59 | B66: 3.05
A67: Observation 60 | B67: 2.85
A68: Observation 61 | B68: 3.56
A69: Observation 62 | B69: 2.92
A70: Observation 63 | B70: 3.35
A71: Observation 64 | B71: 3.46
A72: Observation 65 | B72: 3.59
A73: Observation 66 | B73: 3.11
A74: Observation 67 | B74: 3.65
A75: Observation 68 | B75: 3.17
A76: Observation 69 | B76: 2.97
A77: Observation 70 | B77: 3.77
A78: Observation 71 | B78: 3.21
A79: Observation 72 | B79: 3.17
A80: Observation 73 | B80: 3.65
A81: Observation 74 | B81: 2.94
A82: Observation 75 | B82: 3.53
A83: Observation 76 | B83: 3.65
A84: Observation 77 | B84: 3.61
A85: Observation 78 | B85: 3.7
A86: Observation 79 | B86: 2.91
A87: Observation 80 | B87: 3.09
A88: Observation 81 | B88: 3.77
A89: Observation 82 | B89: 3.79
A90: Observation 83 | B90: 3.59
A91: Observation 84 | B91: 3.38
A92: Observation 85 | B92: 3.57
A93: Observation 86 | B93: 2.97
A94: Observation 87 | B94: 3.44
A95: Observation 88 | B95: 3.64
A96: Observation 89 | B96: 3.48
A97: Observation 90 | B97: 2.99
A98: Observation 91 | B98: 3.73
A99: Observation 92 | B99: 2.91
A100: Observation 93 | B100: 3.78
A101: Observation 94 | B101: 3.4
A102: Observation 95 | B102: 3.13
A103: Observation 96 | B103: 3.14
A104: Observation 97 | B104: 3.24
A105: Observation 98 | B105: 3.56
A106: Observation 99 | B106: 3.16
A107: Observation 100 | B107: 3.53
A108: Observation 101 | B108: 3.01
A109: Observation 102 | B109: 3.3
A110: Observation 103 | B110: 3.62
A111: Observation 104 | B111: 3.21
A112: Observation 105 | B112: 3.39
A113: Observation 106 | B113: 3.65
A114: Observation 107 | B114: 3.47
A115: Observation 108 | B115: 3.44
A116: Observation 109 | B116: 3.88
A117: Observation 110 | B117: 3.83
A118: Observation 111 | B118: 3.53
A119: Observation 112 | B119: 3.22
A120: Observation 113 | B120: 3.56
A121: Observation 114 | B121: 3.2
A122: Observation 115 | B122: 3.17
A123: Observation 116 | B123: 3.41
A124: Observation 117 | B124: 3.56
A125: Observation 118 | B125: 3.34
A126: Observation 119 | B126: 3.44
A127: Observation 120 | B127: 3.76
A128: Observation 121 | B128: 3.55
A129: Observation 122 | B129: 3.88
A130: Observation 123 | B130: 3.31
A131: Observation 124 | B131: 3.09
A132: Observation 125 | B132: 3.82
A133: Observation 126 | B133: 3.01
A134: Observation 127 | B134: 3.66
A135: Observation 128 | B135: 3.64
A136: Observation 129 | B136: 3.59
A137: Observation 130 | B137: 3.49
A138: Observation 131 | B138: 3.13
A139: Observation 132 | B139: 3.83
A140: Observation 133 | B140: 3.04
A141: Observation 134 | B141: 3.91
A142: Observation 135 | B142: 3.56
A143: Observation 136 | B143: 3.96
A144: Observation 137 | B144: 3.46
A145: Observation 138 | B145: 3.22
A146: Observation 139 | B146: 3.27
A147: Observation 140 | B147: 3.43
A148: Observation 141 | B148: 3.85
A149: Observation 142 | B149: 3.89
A150: Observation 143 | B150: 3.37
A151: Observation 144 | B151: 3.32
A152: Observation 145 | B152: 3.54
A153: Observation 146 | B153: 3.8
A154: Observation 147 | B154: 3.74
A155: Observation 148 | B155: 3.17
A156: Observation 149 | B156: 3.27
A157: Observation 150 | B157: 3.32
A158: Observation 151 | B158: 3.56
A159: Observation 152 | B159: 3.95
A160: Observation 153 | B160: 3.56
A161: Observation 154 | B161: 3.79
A162: Observation 155 | B162: 3.93
A163: Observation 156 | B163: 3.79
A164: Observation 157 | B164: 3.71
A165: Observation 158 | B165: 3.05
A166: Observation 159 | B166: 3.22
A167: Observation 160 | B167: 3.85
A168: Observation 161 | B168: 3.82
A169: Observation 162 | B169: 3.23
A170: Observation 163 | B170: 3.56
A171: Observation 164 | B171: 3.53
A172: Observation 165 | B172: 3.62
A173: Observation 166 | B173: 3.8
A174: Observation 167 | B174: 3.47
A175: Observation 168 | B175: 3.64
A176: Observation 169 | B176: 3.03
A177: Observation 170 | B177: 3.17
A178: Observation 171 | B178: 3.22
A179: Observation 172 | B179: 3.92
A180: Observation 173 | B180: 3.82
A181: Observation 174 | B181: 3.26
A182: Observation 175 | B182: 3.8
A183: Observation 176 | B183: 3.2
A184: Observation 177 | B184: 3.46
A185: Observation 178 | B185: 3.67
A186: Observation 179 | B186: 3.06
A187: Observation 180 | B187: 3.66
A188: Observation 181 | B188: 3.96
A189: Observation 182 | B189: 3.75
A190: Observation 183 | B190: 3.83
A191: Observation 184 | B191: 3.22
A192: Observation 185 | B192: 3.36
A193: Observation 186 | B193: 3.21
A194: Observation 187 | B194: 3.02
A195: Observation 188 | B195: 3.99
A196: Observation 189 | B196: 3.07
A197: Observation 190 | B197: 3.65
A198: Observation 191 | B198: 3.67
A199: Observation 192 | B199: 3.06
A200: Observation 193 | B200: 3.98
A201: Observation 194 | B201: 3.93
... 6 more rows

Sheet Sample Data
A1: This is a set of 200 observations for use in trying out the Histogram Generator.
A2: Copy the DATA into columns B8:B207 in the Histogram Generator.
A3: N | C3: DATA
A4: 1 | C4: 2.82
A5: 2 | C5: 3.49
A6: 3 | C6: 3.28
A7: 4 | C7: 3.25
A8: 5 | C8: 3.26
A9: 6 | C9: 2.87
A10: 7 | C10: 3.16
A11: 8 | C11: 3.4
A12: 9 | C12: 2.84
A13: 10 | C13: 3.72
A14: 11 | C14: 3.22
A15: 12 | C15: 3.44
A16: 13 | C16: 3.65
A17: 14 | C17: 3.02
A18: 15 | C18: 3.03
A19: 16 | C19: 3.8
A20: 17 | C20: 3.23
A21: 18 | C21: 3.26
A22: 19 | C22: 3.53
A23: 20 | C23: 3.75
A24: 21 | C24: 3.15
A25: 22 | C25: 3.66
A26: 23 | C26: 3.36
A27: 24 | C27: 3.79
A28: 25 | C28: 2.85
A29: 26 | C29: 3.74
A30: 27 | C30: 3.23
A31: 28 | C31: 3.52
A32: 29 | C32: 3.32
A33: 30 | C33: 2.89
A34: 31 | C34: 2.83
A35: 32 | C35: 2.93
A36: 33 | C36: 3.71
A37: 34 | C37: 3.47
A38: 35 | C38: 3.52
A39: 36 | C39: 2.83
A40: 37 | C40: 3.64
A41: 38 | C41: 2.96
A42: 39 | C42: 3.59
A43: 40 | C43: 3.33
A44: 41 | C44: 3.38
A45: 42 | C45: 3.44
A46: 43 | C46: 3.31
A47: 44 | C47: 3.03
A48: 45 | C48: 3.26
A49: 46 | C49: 3.04
A50: 47 | C50: 2.98
A51: 48 | C51: 2.8
A52: 49 | C52: 3.75
A53: 50 | C53: 3.64
A54: 51 | C54: 3.65
A55: 52 | C55: 3.18
A56: 53 | C56: 3.44
A57: 54 | C57: 3.06
A58: 55 | C58: 3.51
A59: 56 | C59: 3.33
A60: 57 | C60: 2.81
A61: 58 | C61: 3.64
A62: 59 | C62: 3.05
A63: 60 | C63: 2.85
A64: 61 | C64: 3.56
A65: 62 | C65: 2.92
A66: 63 | C66: 3.35
A67: 64 | C67: 3.46
A68: 65 | C68: 3.59
A69: 66 | C69: 3.11
A70: 67 | C70: 3.65
A71: 68 | C71: 3.17
A72: 69 | C72: 2.97
A73: 70 | C73: 3.77
A74: 71 | C74: 3.21
A75: 72 | C75: 3.17
A76: 73 | C76: 3.65
A77: 74 | C77: 2.94
A78: 75 | C78: 3.53
A79: 76 | C79: 3.65
A80: 77 | C80: 3.61
A81: 78 | C81: 3.7
A82: 79 | C82: 2.91
A83: 80 | C83: 3.09
A84: 81 | C84: 3.77
A85: 82 | C85: 3.79
A86: 83 | C86: 3.59
A87: 84 | C87: 3.38
A88: 85 | C88: 3.57
A89: 86 | C89: 2.97
A90: 87 | C90: 3.44
A91: 88 | C91: 3.64
A92: 89 | C92: 3.48
A93: 90 | C93: 2.99
A94: 91 | C94: 3.73
A95: 92 | C95: 2.91
A96: 93 | C96: 3.78
A97: 94 | C97: 3.4
A98: 95 | C98: 3.13
A99: 96 | C99: 3.14
A100: 97 | C100: 3.24
A101: 98 | C101: 3.56
A102: 99 | C102: 3.16
A103: 100 | C103: 3.53
A104: 101 | C104: 3.01
A105: 102 | C105: 3.3
A106: 103 | C106: 3.62
A107: 104 | C107: 3.21
A108: 105 | C108: 3.39
A109: 106 | C109: 3.65
A110: 107 | C110: 3.47
A111: 108 | C111: 3.44
A112: 109 | C112: 3.88
A113: 110 | C113: 3.83
A114: 111 | C114: 3.53
A115: 112 | C115: 3.22
A116: 113 | C116: 3.56
A117: 114 | C117: 3.2
A118: 115 | C118: 3.17
A119: 116 | C119: 3.41
A120: 117 | C120: 3.56
A121: 118 | C121: 3.34
A122: 119 | C122: 3.44
A123: 120 | C123: 3.76
A124: 121 | C124: 3.55
A125: 122 | C125: 3.88
A126: 123 | C126: 3.31
A127: 124 | C127: 3.09
A128: 125 | C128: 3.82
A129: 126 | C129: 3.01
A130: 127 | C130: 3.66
A131: 128 | C131: 3.64
A132: 129 | C132: 3.59
A133: 130 | C133: 3.49
A134: 131 | C134: 3.13
A135: 132 | C135: 3.83
A136: 133 | C136: 3.04
A137: 134 | C137: 3.91
A138: 135 | C138: 3.56
A139: 136 | C139: 3.96
A140: 137 | C140: 3.46
A141: 138 | C141: 3.22
A142: 139 | C142: 3.27
A143: 140 | C143: 3.43
A144: 141 | C144: 3.85
A145: 142 | C145: 3.89
A146: 143 | C146: 3.37
A147: 144 | C147: 3.32
A148: 145 | C148: 3.54
A149: 146 | C149: 3.8
A150: 147 | C150: 3.74
A151: 148 | C151: 3.17
A152: 149 | C152: 3.27
A153: 150 | C153: 3.32
A154: 151 | C154: 3.56
A155: 152 | C155: 3.95
A156: 153 | C156: 3.56
A157: 154 | C157: 3.79
A158: 155 | C158: 3.93
A159: 156 | C159: 3.79
A160: 157 | C160: 3.71
A161: 158 | C161: 3.05
A162: 159 | C162: 3.22
A163: 160 | C163: 3.85
A164: 161 | C164: 3.82
A165: 162 | C165: 3.23
A166: 163 | C166: 3.56
A167: 164 | C167: 3.53
A168: 165 | C168: 3.62
A169: 166 | C169: 3.8
A170: 167 | C170: 3.47
A171: 168 | C171: 3.64
A172: 169 | C172: 3.03
A173: 170 | C173: 3.17
A174: 171 | C174: 3.22
A175: 172 | C175: 3.92
A176: 173 | C176: 3.82
A177: 174 | C177: 3.26
A178: 175 | C178: 3.8
A179: 176 | C179: 3.2
A180: 177 | C180: 3.46
A181: 178 | C181: 3.67
A182: 179 | C182: 3.06
A183: 180 | C183: 3.66
A184: 181 | C184: 3.96
A185: 182 | C185: 3.75
A186: 183 | C186: 3.83
A187: 184 | C187: 3.22
A188: 185 | C188: 3.36
A189: 186 | C189: 3.21
A190: 187 | C190: 3.02
A191: 188 | C191: 3.99
A192: 189 | C192: 3.07
A193: 190 | C193: 3.65
A194: 191 | C194: 3.67
A195: 192 | C195: 3.06
A196: 193 | C196: 3.98
A197: 194 | C197: 3.93
A198: 195 | C198: 3.41
A199: 196 | C199: 3.43
A200: 197 | C200: 3.7
... 3 more rows
